[Event "Betsys MČR v online bleskovém šachu 2021"]
[Site "Chess.com"]
[Date "2021.04.17"]
[Round "13"]
[White "VeceraP1973"]
[Black "fera_v"]
[Result "0-1"]
[WhiteElo "1950"]
[BlackElo "2233"]
[TimeControl "180+1"]
[EndTime "11:11:26 PDT"]
[Termination "Uživatel fera_v zvítězil po vzdání soupeře"]

1. e4 {[%clk 0:03:00.9]} 1... e6 {[%clk 0:02:51.1]} 2. d4 {[%clk 0:02:59.9]}
2... d5 {[%clk 0:02:51.1]} 3. Nc3 {[%clk 0:02:59.2]} 3... Nf6 {[%clk 0:02:50.3]}
4. e5 {[%clk 0:02:58.7]} 4... Nfd7 {[%clk 0:02:49.7]} 5. Nf3 {[%clk 0:02:59.2]}
5... c5 {[%clk 0:02:50.1]} 6. dxc5 {[%clk 0:02:59.4]} 6... Bxc5 {[%clk
0:02:49.2]} 7. Bd3 {[%clk 0:02:59]} 7... Nc6 {[%clk 0:02:48.6]} 8. Bf4 {[%clk
0:02:58.8]} 8... a6 {[%clk 0:02:40.5]} 9. O-O {[%clk 0:02:58]} 9... b5 {[%clk
0:02:40.4]} 10. a3 {[%clk 0:02:57.3]} 10... Bb7 {[%clk 0:02:38.6]} 11. Re1
{[%clk 0:02:54.1]} 11... h6 {[%clk 0:02:34.4]} 12. Bg3 {[%clk 0:02:52.9]} 12...
Qe7 {[%clk 0:02:33.9]} 13. Nxd5 {[%clk 0:02:41.9]} 13... exd5 {[%clk 0:02:31.9]}
14. e6 {[%clk 0:02:37.3]} 14... fxe6 {[%clk 0:02:30.8]} 15. Bg6+ {[%clk
0:02:36.5]} 15... Kd8 {[%clk 0:02:25.4]} 16. Bh4 {[%clk 0:02:35.6]} 16... Nf6
{[%clk 0:02:23.6]} 17. Bf5 {[%clk 0:02:24.1]} 17... Bc8 {[%clk 0:01:47]} 18. b3
{[%clk 0:02:16.6]} 18... Qf7 {[%clk 0:01:41.2]} 19. Bh3 {[%clk 0:01:57.6]} 19...
Kc7 {[%clk 0:01:35.5]} 20. c4 {[%clk 0:01:54.3]} 20... bxc4 {[%clk 0:01:23.7]}
21. bxc4 {[%clk 0:01:53.7]} 21... d4 {[%clk 0:01:22]} 22. Bg3+ {[%clk
0:01:51.1]} 22... Kd8 {[%clk 0:01:16.6]} 23. Qa4 {[%clk 0:01:44.1]} 23... Bd7
{[%clk 0:01:12.1]} 24. Bxe6 {[%clk 0:01:34.5]} 24... Qg6 {[%clk 0:00:39.4]} 25.
Bxd7 {[%clk 0:01:28.7]} 25... Nxd7 {[%clk 0:00:39.1]} 26. Qxc6 {[%clk
0:01:25.8]} 26... Qxc6 {[%clk 0:00:38.2]} 27. Rad1 {[%clk 0:01:16]} 27... Re8
{[%clk 0:00:37.3]} 28. Rxe8+ {[%clk 0:01:14.9]} 28... Kxe8 {[%clk 0:00:37]} 29.
h4 {[%clk 0:01:12.2]} 29... Rc8 {[%clk 0:00:36.2]} 30. Re1+ {[%clk 0:01:11.6]}
30... Kf8 {[%clk 0:00:34.8]} 31. h5 {[%clk 0:01:11.2]} 31... d3 {[%clk
0:00:33.1]} 32. Nh4 {[%clk 0:01:10.1]} 32... Kf7 {[%clk 0:00:28]} 33. Rd1 {[%clk
0:01:04.2]} 33... Qe4 {[%clk 0:00:26.5]} 34. Nf3 {[%clk 0:01:02.9]} 34... Qg4
{[%clk 0:00:24.9]} 35. Rxd3 {[%clk 0:01:01.2]} 35... Nf6 {[%clk 0:00:24.9]} 36.
Ne5+ {[%clk 0:00:59.6]} 36... Ke6 {[%clk 0:00:23.2]} 37. Nxg4 {[%clk 0:00:59.5]}
37... Nxg4 {[%clk 0:00:23.9]} 38. Rd5 {[%clk 0:00:59.2]} 38... Nf6 {[%clk
0:00:22.9]} 39. Re5+ {[%clk 0:00:57.4]} 39... Kf7 {[%clk 0:00:22.2]} 40. Rf5
{[%clk 0:00:55.1]} 40... Bxa3 {[%clk 0:00:21.8]} 41. Kh2 {[%clk 0:00:53.3]}
41... Bc5 {[%clk 0:00:21.7]} 42. f3 {[%clk 0:00:52.5]} 42... a5 {[%clk
0:00:21.8]} 43. Be5 {[%clk 0:00:51.3]} 43... a4 {[%clk 0:00:21]} 44. Ba1 {[%clk
0:00:49]} 44... a3 {[%clk 0:00:20.9]} 45. g4 {[%clk 0:00:47.4]} 45... a2 {[%clk
0:00:19]} 46. Re5 {[%clk 0:00:46.6]} 46... Bd6 {[%clk 0:00:17.4]} 47. f4 {[%clk
0:00:45.6]} 47... Bxe5 {[%clk 0:00:16.8]} 48. fxe5 {[%clk 0:00:46.5]} 48... Rxc4
{[%clk 0:00:16.6]} 49. exf6 {[%clk 0:00:46]} 49... Rc1 {[%clk 0:00:16.6]} 50.
Bd4 {[%clk 0:00:45]} 50... a1=Q {[%clk 0:00:14.9]} 51. Bxa1 {[%clk 0:00:44.3]}
51... Rxa1 {[%clk 0:00:15.1]} 52. fxg7 {[%clk 0:00:45.2]} 52... Kxg7 {[%clk
0:00:15.2]} 53. Kg2 {[%clk 0:00:44.6]} 53... Kf6 {[%clk 0:00:15.8]} 54. Kf3
{[%clk 0:00:44.9]} 54... Kg5 {[%clk 0:00:16.3]} 55. Ke4 {[%clk 0:00:44.8]} 55...
Ra4+ {[%clk 0:00:16.9]} 56. Kd3 {[%clk 0:00:44.7]} 56... Rxg4 {[%clk 0:00:17.5]}
57. Ke3 {[%clk 0:00:44.8]} 57... Kxh5 {[%clk 0:00:18.4]} 58. Kf3 {[%clk
0:00:44.8]} 58... Kg5 {[%clk 0:00:19.3]} 59. Kf2 {[%clk 0:00:44.5]} 59... h5
{[%clk 0:00:20.2]} 60. Kf3 {[%clk 0:00:44.5]} 60... h4 {[%clk 0:00:21.1]} 0-1

[Event "Betsys MČR v online bleskovém šachu 2021"]
[Site "Chess.com"]
[Date "2021.04.17"]
[Round "13"]
[White "horalek"]
[Black "AdaTra"]
[Result "0-1"]
[WhiteElo "1341"]
[BlackElo "1659"]
[TimeControl "180+1"]
[EndTime "11:11:27 PDT"]
[Termination "Uživatel AdaTra zvítězil matem"]

1. d4 {[%clk 0:03:00.9]} 1... d5 {[%clk 0:02:59.7]} 2. Bf4 {[%clk 0:03:00.5]}
2... Nf6 {[%clk 0:02:58.8]} 3. e3 {[%clk 0:03:00.2]} 3... c5 {[%clk 0:02:58.6]}
4. c3 {[%clk 0:02:59.7]} 4... Nc6 {[%clk 0:02:58.5]} 5. Nd2 {[%clk 0:02:58.7]}
5... Bf5 {[%clk 0:02:56.5]} 6. Ngf3 {[%clk 0:02:56.9]} 6... e6 {[%clk
0:02:53.4]} 7. h3 {[%clk 0:02:56.1]} 7... Bd6 {[%clk 0:02:50]} 8. Be2 {[%clk
0:02:53.1]} 8... Bxf4 {[%clk 0:02:47.4]} 9. exf4 {[%clk 0:02:52.2]} 9... cxd4
{[%clk 0:02:47.1]} 10. cxd4 {[%clk 0:02:48.1]} 10... O-O {[%clk 0:02:45.4]} 11.
O-O {[%clk 0:02:42.6]} 11... Qb6 {[%clk 0:02:38.3]} 12. Nb3 {[%clk 0:02:37.1]}
12... Be4 {[%clk 0:02:33]} 13. Nc5 {[%clk 0:02:26.2]} 13... Bxf3 {[%clk
0:02:21.9]} 14. Bxf3 {[%clk 0:02:23.5]} 14... Rfc8 {[%clk 0:02:21.9]} 15. Rc1
{[%clk 0:02:18.2]} 15... a6 {[%clk 0:02:13]} 16. b3 {[%clk 0:02:13.4]} 16... Ne7
{[%clk 0:02:09]} 17. Re1 {[%clk 0:02:03.1]} 17... Rc6 {[%clk 0:02:07]} 18. g4
{[%clk 0:01:56]} 18... Rac8 {[%clk 0:02:03.3]} 19. g5 {[%clk 0:01:55.3]} 19...
Ne8 {[%clk 0:01:59.1]} 20. Bg4 {[%clk 0:01:43.5]} 20... Nd6 {[%clk 0:01:54.6]}
21. Bxe6 {[%clk 0:01:35.8]} 21... fxe6 {[%clk 0:01:50.1]} 22. Rxe6 {[%clk
0:01:33.3]} 22... Ndf5 {[%clk 0:01:45.2]} 23. Qd2 {[%clk 0:01:21.5]} 23... Rxe6
{[%clk 0:01:39.3]} 24. Nxe6 {[%clk 0:01:18.3]} 24... Rxc1+ {[%clk 0:01:38]} 25.
Qxc1 {[%clk 0:01:17]} 25... Qxe6 {[%clk 0:01:37.7]} 26. Qd2 {[%clk 0:01:10.1]}
26... Nc6 {[%clk 0:01:33.4]} 27. Kg2 {[%clk 0:01:08.6]} 27... Qe4+ {[%clk
0:01:31.4]} 28. f3 {[%clk 0:01:06.5]} 28... Qxd4 {[%clk 0:01:30.1]} 29. Qe2
{[%clk 0:01:03.6]} 29... Qe3 {[%clk 0:01:29.5]} 30. Qc2 {[%clk 0:01:01.2]} 30...
Nfd4 {[%clk 0:01:25.3]} 31. Qd1 {[%clk 0:00:46.1]} 31... Qe2+ {[%clk 0:01:18.4]}
32. Qxe2 {[%clk 0:00:44.9]} 32... Nxe2 {[%clk 0:01:19.3]} 33. Kf2 {[%clk
0:00:43.9]} 33... Nc3 {[%clk 0:01:18.5]} 34. f5 {[%clk 0:00:38.5]} 34... Nxa2
{[%clk 0:01:14.8]} 35. Kg3 {[%clk 0:00:38.2]} 35... d4 {[%clk 0:01:12.7]} 36.
Kf4 {[%clk 0:00:37.1]} 36... Nc3 {[%clk 0:01:09.9]} 37. h4 {[%clk 0:00:27.8]}
37... Kf7 {[%clk 0:01:04.8]} 38. h5 {[%clk 0:00:26.9]} 38... g6 {[%clk 0:01:02]}
39. fxg6+ {[%clk 0:00:24.5]} 39... hxg6 {[%clk 0:01:01.9]} 40. h6 {[%clk
0:00:23.6]} 40... b5 {[%clk 0:00:59.2]} 41. Kg4 {[%clk 0:00:20]} 41... d3 {[%clk
0:00:57.3]} 42. f4 {[%clk 0:00:18.4]} 42... d2 {[%clk 0:00:56.7]} 43. f5 {[%clk
0:00:17.8]} 43... d1=Q+ {[%clk 0:00:56.5]} 44. Kh4 {[%clk 0:00:14.7]} 44... Qh1+
{[%clk 0:00:52.3]} 45. Kg3 {[%clk 0:00:13.2]} 45... Ne4+ {[%clk 0:00:51.3]} 46.
Kf4 {[%clk 0:00:12.2]} 46... Qh4+ {[%clk 0:00:44.9]} 47. Ke3 {[%clk 0:00:09.8]}
47... gxf5 {[%clk 0:00:43.3]} 48. h7 {[%clk 0:00:08.3]} 48... Qxh7 {[%clk
0:00:41.8]} 49. g6+ {[%clk 0:00:07.2]} 49... Qxg6 {[%clk 0:00:41.6]} 50. b4
{[%clk 0:00:06.7]} 50... Qg3+ {[%clk 0:00:40.9]} 51. Ke2 {[%clk 0:00:06.1]}
51... Nd4+ {[%clk 0:00:40.2]} 52. Kf1 {[%clk 0:00:05.4]} 52... Qf2# {[%clk
0:00:39.5]} 0-1

[Event "Betsys MČR v online bleskovém šachu 2021"]
[Site "Chess.com"]
[Date "2021.04.17"]
[Round "13"]
[White "krystofkrizek1"]
[Black "Filipdol"]
[Result "0-1"]
[WhiteElo "2117"]
[BlackElo "1923"]
[TimeControl "180+1"]
[EndTime "11:11:32 PDT"]
[Termination "Uživatel Filipdol zvítězil na čas"]

1. Nf3 {[%clk 0:03:00.9]} 1... Nf6 {[%clk 0:02:58.7]} 2. d4 {[%clk 0:02:59.1]}
2... g6 {[%clk 0:02:58.5]} 3. b3 {[%clk 0:02:56.8]} 3... Bg7 {[%clk 0:02:59.4]}
4. Bb2 {[%clk 0:02:57.1]} 4... O-O {[%clk 0:02:59.9]} 5. e3 {[%clk 0:02:57.7]}
5... d6 {[%clk 0:03:00.2]} 6. Bd3 {[%clk 0:02:57.8]} 6... c5 {[%clk 0:02:55.4]}
7. Nbd2 {[%clk 0:02:57.7]} 7... a6 {[%clk 0:02:51.6]} 8. O-O {[%clk 0:02:56.8]}
8... Bd7 {[%clk 0:02:47.1]} 9. Qe2 {[%clk 0:02:50.7]} 9... Nc6 {[%clk
0:02:42.1]} 10. c3 {[%clk 0:02:48.2]} 10... e6 {[%clk 0:02:39.4]} 11. e4 {[%clk
0:02:46.7]} 11... e5 {[%clk 0:02:34.7]} 12. Rac1 {[%clk 0:02:40.1]} 12... b6
{[%clk 0:02:31.6]} 13. a4 {[%clk 0:02:31.2]} 13... a5 {[%clk 0:02:24.3]} 14. Nc4
{[%clk 0:02:25.9]} 14... Qc7 {[%clk 0:02:21.4]} 15. Bb1 {[%clk 0:02:13]} 15...
Nh5 {[%clk 0:02:16.5]} 16. Qd1 {[%clk 0:01:51.5]} 16... Rad8 {[%clk 0:02:04.2]}
17. Ne3 {[%clk 0:01:51.1]} 17... Ne7 {[%clk 0:01:53.3]} 18. h3 {[%clk
0:01:19.3]} 18... Nf4 {[%clk 0:01:47.8]} 19. dxc5 {[%clk 0:01:09.2]} 19... dxc5
{[%clk 0:01:45.8]} 20. Qc2 {[%clk 0:01:09.3]} 20... Be6 {[%clk 0:01:40.6]} 21.
c4 {[%clk 0:01:09.3]} 21... Nc6 {[%clk 0:01:29.8]} 22. Nd5 {[%clk 0:01:09.4]}
22... Bxd5 {[%clk 0:01:20.9]} 23. exd5 {[%clk 0:01:02.5]} 23... Nd4 {[%clk
0:01:20.7]} 24. Bxd4 {[%clk 0:00:53.4]} 24... exd4 {[%clk 0:01:18.8]} 25. Ne1
{[%clk 0:00:44.3]} 25... Rfe8 {[%clk 0:01:16.2]} 26. Kh1 {[%clk 0:00:20]} 26...
Qd7 {[%clk 0:01:04.1]} 27. Nf3 {[%clk 0:00:09.9]} 27... Re2 {[%clk 0:00:56.7]}
28. Qd1 {[%clk 0:00:08.1]} 28... Rde8 {[%clk 0:00:53.5]} 29. Bd3 {[%clk
0:00:08.4]} 29... R2e7 {[%clk 0:00:49.6]} 30. Qd2 {[%clk 0:00:06.5]} 30... Bh6
{[%clk 0:00:38.2]} 31. Qc2 {[%clk 0:00:05]} 31... Nxh3 {[%clk 0:00:29.7]} 32.
gxh3 {[%clk 0:00:05]} 32... Qxh3+ {[%clk 0:00:30.3]} 33. Nh2 {[%clk 0:00:05.7]}
33... Bf4 {[%clk 0:00:28.3]} 34. f3 {[%clk 0:00:04.9]} 34... Re2 {[%clk
0:00:27.3]} 35. Rf2 {[%clk 0:00:01.8]} 35... Rxc2 {[%clk 0:00:26.2]} 36. Rcxc2
{[%clk 0:00:02.1]} 36... Re1+ {[%clk 0:00:24.3]} 37. Rf1 {[%clk 0:00:02.7]}
37... Rxf1+ {[%clk 0:00:22.9]} 38. Bxf1 {[%clk 0:00:03.6]} 38... Qg3 {[%clk
0:00:20.4]} 39. Rg2 {[%clk 0:00:02.1]} 39... Qe1 {[%clk 0:00:19.8]} 40. Re2
{[%clk 0:00:02.6]} 40... Qb4 {[%clk 0:00:18.7]} 41. Ng4 {[%clk 0:00:02.9]} 41...
Qxb3 {[%clk 0:00:17.5]} 42. d6 {[%clk 0:00:02.9]} 42... Qxf3+ {[%clk 0:00:17.5]}
43. Rg2 {[%clk 0:00:01.7]} 43... Qc6 {[%clk 0:00:16.2]} 0-1

[Event "Betsys MČR v online bleskovém šachu 2021"]
[Site "Chess.com"]
[Date "2021.04.17"]
[Round "13"]
[White "EXTREME_STRATEGY007"]
[Black "Listro33"]
[Result "1-0"]
[WhiteElo "1435"]
[BlackElo "1849"]
[TimeControl "180+1"]
[EndTime "11:11:32 PDT"]
[Termination "Uživatel EXTREME_STRATEGY007 zvítězil na čas"]

1. e4 {[%clk 0:02:27.2]} 1... c6 {[%clk 0:02:56.4]} 2. d4 {[%clk 0:02:25.7]}
2... d5 {[%clk 0:02:46.9]} 3. Nc3 {[%clk 0:02:24.6]} 3... dxe4 {[%clk
0:02:46.3]} 4. Nxe4 {[%clk 0:02:23.6]} 4... Nd7 {[%clk 0:02:46.9]} 5. Nf3 {[%clk
0:02:21.3]} 5... Ngf6 {[%clk 0:02:46.2]} 6. Bg5 {[%clk 0:02:18.2]} 6... Nxe4
{[%clk 0:02:42.1]} 7. Bf4 {[%clk 0:02:13.7]} 7... e6 {[%clk 0:02:39.5]} 8. Qe2
{[%clk 0:02:09.6]} 8... Nef6 {[%clk 0:02:24.5]} 9. c4 {[%clk 0:01:56.6]} 9...
Bb4+ {[%clk 0:02:19.5]} 10. Nd2 {[%clk 0:01:50.7]} 10... O-O {[%clk 0:02:14.7]}
11. c5 {[%clk 0:01:39.6]} 11... Nd5 {[%clk 0:01:59.9]} 12. Bd6 {[%clk
0:01:37.9]} 12... Re8 {[%clk 0:01:58.2]} 13. O-O-O {[%clk 0:01:32.3]} 13...
Bxd2+ {[%clk 0:01:42.1]} 14. Rxd2 {[%clk 0:01:30.5]} 14... b6 {[%clk 0:01:42.2]}
15. g3 {[%clk 0:01:19.7]} 15... a5 {[%clk 0:01:40.7]} 16. Bg2 {[%clk 0:01:18.5]}
16... Ba6 {[%clk 0:01:37.5]} 17. Qg4 {[%clk 0:01:14.4]} 17... N7f6 {[%clk
0:01:31.6]} 18. Qg5 {[%clk 0:01:00.7]} 18... h6 {[%clk 0:01:23.5]} 19. Qe5
{[%clk 0:00:51.3]} 19... Ng4 {[%clk 0:01:00.3]} 20. Qe1 {[%clk 0:00:43.7]} 20...
Qg5 {[%clk 0:00:59.4]} 21. f4 {[%clk 0:00:40.4]} 21... Qg6 {[%clk 0:00:41.6]}
22. Be4 {[%clk 0:00:35.7]} 22... Qf6 {[%clk 0:00:38.3]} 23. h3 {[%clk
0:00:27.5]} 23... Nge3 {[%clk 0:00:34.1]} 24. Be5 {[%clk 0:00:20.8]} 24... Qe7
{[%clk 0:00:32.9]} 25. Bd6 {[%clk 0:00:20.2]} 25... Qd7 {[%clk 0:00:29.2]} 26.
g4 {[%clk 0:00:19.1]} 26... f5 {[%clk 0:00:18.8]} 27. Bf3 {[%clk 0:00:14.9]}
27... Nc4 {[%clk 0:00:07.4]} 28. Rc2 {[%clk 0:00:13]} 28... Nxd6 {[%clk
0:00:07.3]} 29. cxd6 {[%clk 0:00:12.1]} 29... Qxd6 {[%clk 0:00:07.6]} 30. gxf5
{[%clk 0:00:12.1]} 30... Qxf4+ {[%clk 0:00:07.1]} 31. Kb1 {[%clk 0:00:11.3]}
31... Qxf5 {[%clk 0:00:06.5]} 32. Be4 {[%clk 0:00:08.7]} 32... Qf7 {[%clk
0:00:05.7]} 33. Rf1 {[%clk 0:00:07.6]} 33... Qe7 {[%clk 0:00:04.8]} 34. Rg1
{[%clk 0:00:06.2]} 34... Rac8 {[%clk 0:00:02.9]} 35. Qg3 {[%clk 0:00:05.8]}
35... Rf8 {[%clk 0:00:02.1]} 36. Rcg2 {[%clk 0:00:04.8]} 36... Rf7 {[%clk
0:00:02]} 37. Bg6 {[%clk 0:00:02.2]} 37... Rf6 {[%clk 0:00:01.3]} 38. Bh5 {[%clk
0:00:02.1]} 1-0

[Event "Betsys MČR v online bleskovém šachu 2021"]
[Site "Chess.com"]
[Date "2021.04.17"]
[Round "13"]
[White "Countryside_58"]
[Black "DenryS"]
[Result "1-0"]
[WhiteElo "2422"]
[BlackElo "2209"]
[TimeControl "180+1"]
[EndTime "11:11:33 PDT"]
[Termination "Uživatel Countryside_58 zvítězil na čas"]

1. h4 {[%clk 0:03:00.9]} 1... d5 {[%clk 0:02:59]} 2. h5 {[%clk 0:03:00.7]} 2...
Nc6 {[%clk 0:02:56.7]} 3. d4 {[%clk 0:03:00.2]} 3... Bf5 {[%clk 0:02:56.4]} 4.
Nf3 {[%clk 0:02:58.8]} 4... Qd7 {[%clk 0:02:54]} 5. Bf4 {[%clk 0:02:52.6]} 5...
e6 {[%clk 0:02:50.3]} 6. e3 {[%clk 0:02:48.8]} 6... Nf6 {[%clk 0:02:46.9]} 7.
Ne5 {[%clk 0:02:39]} 7... Qe7 {[%clk 0:02:05.4]} 8. c3 {[%clk 0:01:58.3]} 8...
h6 {[%clk 0:02:03.1]} 9. Bb5 {[%clk 0:01:57.1]} 9... a6 {[%clk 0:01:32.4]} 10.
Nxc6 {[%clk 0:01:55.5]} 10... Qd7 {[%clk 0:01:31.5]} 11. Ba4 {[%clk 0:01:53.9]}
11... bxc6 {[%clk 0:01:31.2]} 12. Nd2 {[%clk 0:01:48]} 12... Rb8 {[%clk
0:01:31]} 13. Nf3 {[%clk 0:01:47]} 13... Bd6 {[%clk 0:01:28.7]} 14. Qe2 {[%clk
0:01:32.6]} 14... Bg4 {[%clk 0:01:26.5]} 15. Qxa6 {[%clk 0:01:29.7]} 15... O-O
{[%clk 0:01:15.1]} 16. Ne5 {[%clk 0:01:03.5]} 16... Bxe5 {[%clk 0:01:10.4]} 17.
Bxe5 {[%clk 0:00:50]} 17... Rb6 {[%clk 0:01:04.1]} 18. Qa7 {[%clk 0:00:46.3]}
18... Rxb2 {[%clk 0:01:03.1]} 19. f3 {[%clk 0:00:38.2]} 19... Bf5 {[%clk
0:00:51.4]} 20. O-O {[%clk 0:00:37.7]} 20... Nxh5 {[%clk 0:00:38]} 21. Qxc7
{[%clk 0:00:24.5]} 21... Qxc7 {[%clk 0:00:33]} 22. Bxc7 {[%clk 0:00:24.3]} 22...
Rc8 {[%clk 0:00:28.3]} 23. Be5 {[%clk 0:00:23.2]} 23... Nf6 {[%clk 0:00:23.6]}
24. Bb3 {[%clk 0:00:19.9]} 24... c5 {[%clk 0:00:18.9]} 25. c4 {[%clk 0:00:17.3]}
25... dxc4 {[%clk 0:00:16.7]} 26. Bxc4 {[%clk 0:00:17.2]} 26... Rc2 {[%clk
0:00:12.5]} 27. Bb3 {[%clk 0:00:16.2]} 27... Re2 {[%clk 0:00:11.6]} 28. dxc5
{[%clk 0:00:15.6]} 28... Rxe3 {[%clk 0:00:07.5]} 29. Bd6 {[%clk 0:00:14.4]}
29... Nd5 {[%clk 0:00:05.7]} 30. Rac1 {[%clk 0:00:13]} 30... Rc3 {[%clk
0:00:05.1]} 31. Rxc3 {[%clk 0:00:12.2]} 31... Nxc3 {[%clk 0:00:06]} 32. Kf2
{[%clk 0:00:08.4]} 32... Bd3 {[%clk 0:00:05.8]} 33. Rc1 {[%clk 0:00:07.8]} 33...
Nd5 {[%clk 0:00:05.1]} 34. c6 {[%clk 0:00:05.9]} 34... Bb5 {[%clk 0:00:04.1]}
35. c7 {[%clk 0:00:05.4]} 35... Nb6 {[%clk 0:00:03.3]} 36. a4 {[%clk 0:00:04.2]}
36... Bxa4 {[%clk 0:00:02.7]} 37. Bxa4 {[%clk 0:00:03.8]} 37... Nxa4 {[%clk
0:00:03.6]} 38. Rc6 {[%clk 0:00:02.9]} 38... f6 {[%clk 0:00:01.8]} 39. Ra6
{[%clk 0:00:02.1]} 1-0

[Event "Betsys MČR v online bleskovém šachu 2021"]
[Site "Chess.com"]
[Date "2021.04.17"]
[Round "13"]
[White "Jakuboss22005"]
[Black "sodikus"]
[Result "1/2-1/2"]
[WhiteElo "2094"]
[BlackElo "2259"]
[TimeControl "180+1"]
[EndTime "11:11:34 PDT"]
[Termination "Remíza opakováním pozice"]

1. c4 {[%clk 0:03:00.9]} 1... e5 {[%clk 0:02:44.4]} 2. g3 {[%clk 0:02:59.7]}
2... c6 {[%clk 0:02:43.2]} 3. Nf3 {[%clk 0:02:55.8]} 3... e4 {[%clk 0:02:41.7]}
4. Nd4 {[%clk 0:02:55.6]} 4... Nf6 {[%clk 0:02:41.4]} 5. Bg2 {[%clk 0:02:54.6]}
5... d5 {[%clk 0:02:41.4]} 6. cxd5 {[%clk 0:02:53.5]} 6... cxd5 {[%clk
0:02:41.7]} 7. O-O {[%clk 0:02:52]} 7... Nc6 {[%clk 0:02:41]} 8. Nxc6 {[%clk
0:02:49.5]} 8... bxc6 {[%clk 0:02:40.8]} 9. d3 {[%clk 0:02:49.9]} 9... exd3
{[%clk 0:02:40.4]} 10. Qxd3 {[%clk 0:02:49.5]} 10... Be7 {[%clk 0:02:40.7]} 11.
Nc3 {[%clk 0:02:48.4]} 11... O-O {[%clk 0:02:40]} 12. Bg5 {[%clk 0:02:47.6]}
12... Rb8 {[%clk 0:02:36.9]} 13. b3 {[%clk 0:02:44.6]} 13... h6 {[%clk
0:02:34.1]} 14. Bf4 {[%clk 0:02:37.8]} 14... Rb4 {[%clk 0:02:32.9]} 15. Rfd1
{[%clk 0:02:23.4]} 15... Re8 {[%clk 0:02:30.1]} 16. Rac1 {[%clk 0:02:13]} 16...
Bf8 {[%clk 0:02:21]} 17. Na4 {[%clk 0:02:07.6]} 17... Bd7 {[%clk 0:02:10.4]} 18.
Nc5 {[%clk 0:02:02.9]} 18... Bxc5 {[%clk 0:01:52.3]} 19. Rxc5 {[%clk 0:02:03.8]}
19... Ne4 {[%clk 0:01:50.9]} 20. Rc2 {[%clk 0:01:58]} 20... Qb6 {[%clk
0:01:44.6]} 21. Be3 {[%clk 0:01:53.9]} 21... Qb8 {[%clk 0:01:39.4]} 22. Bd2
{[%clk 0:01:35.4]} 22... Nxd2 {[%clk 0:01:28.8]} 23. Qxd2 {[%clk 0:01:35.2]}
23... a5 {[%clk 0:01:25.9]} 24. e4 {[%clk 0:01:24.5]} 24... d4 {[%clk
0:01:12.3]} 25. Rc4 {[%clk 0:01:17.4]} 25... Rxc4 {[%clk 0:01:07.8]} 26. bxc4
{[%clk 0:01:18.3]} 26... c5 {[%clk 0:00:22.8]} 27. Qxa5 {[%clk 0:01:16.9]} 27...
Qd6 {[%clk 0:00:23.1]} 28. Rb1 {[%clk 0:01:00.3]} 28... d3 {[%clk 0:00:22.5]}
29. Qc3 {[%clk 0:00:56.5]} 29... Bc6 {[%clk 0:00:20.5]} 30. Rd1 {[%clk 0:00:36]}
30... Rd8 {[%clk 0:00:20.3]} 31. e5 {[%clk 0:00:32]} 31... Qc7 {[%clk
0:00:11.8]} 32. Bxc6 {[%clk 0:00:31.9]} 32... Qxc6 {[%clk 0:00:12.3]} 33. Rxd3
{[%clk 0:00:32.2]} 33... Ra8 {[%clk 0:00:10.3]} 34. Rd2 {[%clk 0:00:28]} 34...
Qe4 {[%clk 0:00:10.2]} 35. Qe3 {[%clk 0:00:20.4]} 35... Qxc4 {[%clk 0:00:08.1]}
36. Kg2 {[%clk 0:00:17.6]} 36... Rxa2 {[%clk 0:00:05]} 37. Rxa2 {[%clk
0:00:16.9]} 37... Qxa2 {[%clk 0:00:05.9]} 38. Qxc5 {[%clk 0:00:17]} 38... Qa8+
{[%clk 0:00:05.9]} 39. f3 {[%clk 0:00:16.5]} 39... Qa2+ {[%clk 0:00:05.5]} 40.
Kh3 {[%clk 0:00:15.9]} 40... Qe2 {[%clk 0:00:05.2]} 41. Qc8+ {[%clk 0:00:14.8]}
41... Kh7 {[%clk 0:00:05.4]} 42. Qf5+ {[%clk 0:00:14.8]} 42... Kg8 {[%clk
0:00:05.7]} 43. Qc8+ {[%clk 0:00:15]} 43... Kh7 {[%clk 0:00:06]} 44. Qf5+ {[%clk
0:00:13.3]} 44... Kg8 {[%clk 0:00:06.2]} 45. Qc8+ {[%clk 0:00:13.4]} 1/2-1/2